bitfinex/quotes_BTCUSD_20250523
["timestamp","ask_amount","ask_price","bid_price","bid_amount"]
[1748008875151,0.02733825,109730.0,109720.0,0.25379619]
[1748008875365,0.20049186,109730.0,109720.0,0.33556]
[1748008875578,0.18224895,109740.0,109720.0,0.63801279]
[1748008875579,0.00911219,109740.0,109720.0,0.63801279]
[1748008875731,0.20045515,109750.0,109740.0,0.19136131]
[1748008875939,0.19134395,109750.0,109740.0,0.0309]
[1748008876564,0.19134395,109750.0,109740.0,0.21314895]
[1748008876738,0.00019841,109760.0,109750.0,0.24016618]
[1748008876964,0.0189249,109760.0,109750.0,0.74872618]
[1748008877227,0.00070442,109760.0,109750.0,0.74872618]
[1748008877380,0.01892458,109760.0,109750.0,0.83827174]
[1748008877594,0.21936187,109760.0,109750.0,0.82916088]
[1748008877802,0.21936187,109760.0,109750.0,0.82004943]
[1748008877978,0.01892523,109760.0,109750.0,0.83827208]
[1748008878186,0.03714655,109760.0,109750.0,0.84738311]
[1748008878360,0.0208156,109770.0,109750.0,0.8200491]
[1748008878565,0.2304949,109770.0,109760.0,0.53911436]
[1748008878778,0.02096731,109770.0,109760.0,0.53683689]
[1748008879011,0.02096731,109770.0,109760.0,0.62638245]
[1748008879190,0.04829617,109770.0,109760.0,0.88265565]
[1748008879395,0.048296,109770.0,109760.0,0.89176619]
[1748008879602,0.2213861,109770.0,109760.0,0.0632]
[1748008879976,0.2213861,109770.0,109760.0,0.81635745]
[1748008880181,0.2213861,109770.0,109760.0,0.0632]
[1748008880336,0.2213861,109770.0,109760.0,1.00540652]
[1748008880541,0.2122764,109770.0,109760.0,1.00540652]
[1748008880744,0.03007701,109770.0,109760.0,1.01451722]
[1748008880942,0.18952349,109780.0,109760.0,1.01451722]
[1748008880943,0.00734044,109780.0,109770.0,0.270428]
[1748008881107,0.00734044,109780.0,109770.0,0.91389056]
[1748008881309,0.00734044,109780.0,109770.0,0.75329356]
[1748008881537,0.00734044,109780.0,109770.0,1.51328301]
[1748008881771,0.00734044,109780.0,109770.0,2.29139201]
[1748008882398,0.00734044,109780.0,109770.0,1.98461101]
[1748008882830,0.00734044,109780.0,109770.0,1.88146301]
[1748008883252,0.00734044,109780.0,109770.0,1.84011101]
[1748008883804,0.00734044,109780.0,109770.0,2.19465186]
[1748008884058,0.00734044,109780.0,109770.0,2.19565186]
[1748008884221,0.00734044,109780.0,109770.0,2.18111101]
[1748008884429,0.00734044,109780.0,109770.0,2.18211101]
[1748008885177,0.00734044,109780.0,109770.0,2.18011101]
[1748008885697,0.00734044,109780.0,109770.0,2.18411101]
[1748008885874,0.00734044,109780.0,109770.0,2.19865186]
[1748008886283,0.00734044,109780.0,109770.0,2.18411101]
[1748008887172,0.01644882,109780.0,109770.0,2.08154801]
[1748008887423,0.22595773,109780.0,109770.0,1.34266627]
[1748008887649,0.00734044,109780.0,109770.0,1.60835311]
[1748008888233,0.00734044,109780.0,109770.0,1.67107311]
[1748008888436,0.00734044,109780.0,109770.0,1.95869396]
[1748008888637,0.00734044,109780.0,109770.0,1.95969396]
[1748008889019,0.00734044,109780.0,109770.0,1.95965396]
[1748008889766,0.1388718,109790.0,109780.0,0.22404976]
[1748008889938,0.14288398,109790.0,109780.0,2.73705532]
[1748008890520,0.14288398,109790.0,109780.0,1.94343332]
[1748008891302,0.14288398,109790.0,109780.0,1.94943332]
[1748008891810,0.14288398,109790.0,109780.0,2.13004532]
[1748008892006,0.15199161,109790.0,109780.0,2.10035347]
[1748008892208,0.14288398,109790.0,109780.0,2.10035347]
[1748008892511,0.15199153,109790.0,109780.0,1.86861747]
[1748008892717,0.14288398,109790.0,109780.0,1.86561747]
[1748008893068,0.14288398,109790.0,109780.0,1.88215832]
[1748008893464,0.14288398,109790.0,109780.0,1.87915832]
[1748008893805,0.16109949,109790.0,109780.0,1.77432047]
[1748008893998,0.16109949,109790.0,109780.0,1.71773647]
[1748008893999,0.17020744,109790.0,109780.0,1.71773647]
[1748008894219,0.17020728,109790.0,109780.0,1.71773647]
[1748008894417,0.1702072,109790.0,109780.0,1.71773647]
[1748008894623,0.35237315,109790.0,109780.0,0.9399301]
[1748008894848,0.36148128,109790.0,109780.0,1.54452393]
[1748008895066,0.17931524,109790.0,109780.0,1.64692747]
[1748008895302,0.18582337,109790.0,109780.0,1.67980747]
[1748008895537,0.34977439,109790.0,109780.0,0.28483714]
[1748008895697,0.34066635,109790.0,109780.0,0.48144]
[1748008895907,0.41508842,109790.0,109780.0,0.75444]
[1748008896108,0.41508842,109790.0,109780.0,0.004]
[1748008896346,0.62976243,109790.0,109780.0,0.004]
[1748008896798,0.00910937,109770.0,109760.0,0.20271375]
[1748008896938,0.20952808,109770.0,109760.0,0.20043625]
[1748008897143,0.21863795,109770.0,109760.0,0.20954662]
[1748008897339,0.20952858,109770.0,109760.0,0.95087625]
[1748008897546,0.209528,109770.0,109760.0,0.9690969]
[1748008897747,0.21863795,109770.0,109760.0,0.96909707]
[1748008897957,0.21863795,109770.0,109760.0,0.9609867]
[1748008898151,0.21863795,109770.0,109760.0,0.95187673]
[1748008898382,0.20952858,109770.0,109760.0,0.94276636]
[1748008898581,0.19130909,109770.0,109760.0,0.75144]
[1748008898982,0.0091097,109770.0,109760.0,0.95187681]
[1748008899184,0.20952841,109770.0,109760.0,0.93465574]
[1748008899381,0.20041879,109770.0,109760.0,0.75244]
[1748008899969,0.20041879,109770.0,109760.0,0.75144]
[1748008900164,0.20041879,109770.0,109760.0,0.75044]
[1748008901039,0.19132652,109760.0,109750.0,0.18273835]
[1748008901271,0.20043705,109760.0,109750.0,0.47798601]
[1748008901488,0.75156913,109760.0,109750.0,0.00050601]
[1748008901690,1.12246913,109760.0,109750.0,0.00050601]
[1748008902140,1.13970075,109760.0,109750.0,0.00050601]
[1748008902355,1.41270075,109760.0,109750.0,0.00050601]
[1748008902559,0.20043705,109760.0,109750.0,0.00150601]
[1748008902760,0.32218261,109760.0,109750.0,0.00150601]
[1748008903576,0.32218261,109760.0,109750.0,0.00050601]
[1748008903784,0.32218261,109760.0,109750.0,0.00150601]
[1748008903912,0.35538261,109760.0,109750.0,0.00150601]
[1748008904383,0.83932731,109760.0,109750.0,0.00050601]
[1748008904830,1.18032731,109760.0,109750.0,0.00050601]
[1748008905054,1.19132731,109760.0,109750.0,0.00050601]
[1748008905281,1.62997375,109760.0,109750.0,0.00050601]
[1748008905528,1.62997375,109760.0,109710.0,0.74236]
[1748008905529,0.2005098,109720.0,109710.0,0.74236]
[1748008905747,0.19141355,109710.0,109700.0,0.00154686]
[1748008905970,0.19141355,109710.0,109700.0,0.74394686]
[1748008906196,0.72954563,109710.0,109700.0,0.00154686]
[1748008906636,0.76204563,109710.0,109700.0,0.00154686]
[1748008907239,0.29935911,109710.0,109700.0,0.00254686]
[1748008907869,0.30035911,109710.0,109700.0,0.00254686]
[1748008908229,0.30035911,109710.0,109700.0,0.00129968]
[1748008908387,0.30035911,109710.0,109700.0,0.00029968]
[1748008908793,0.30235911,109710.0,109700.0,0.00029968]
[1748008909415,0.28395911,109710.0,109700.0,0.00029968]
[1748008909631,0.19441355,109710.0,109700.0,0.00029968]
[1748008910651,0.7518152,109710.0,109700.0,0.00029968]
[1748008910831,0.71414563,109710.0,109700.0,0.00029968]
[1748008911029,0.28395911,109710.0,109700.0,0.00029968]
[1748008911562,0.19441355,109710.0,109700.0,0.00029968]
[1748008911974,0.19441355,109710.0,109700.0,0.27345968]
[1748008912113,0.19441355,109710.0,109700.0,0.00029968]
[1748008912316,0.28395911,109710.0,109700.0,0.46981968]
[1748008912557,0.74424563,109710.0,109700.0,0.00029968]
[1748008912886,0.74324563,109710.0,109700.0,0.00029968]
[1748008913097,0.31105911,109710.0,109700.0,0.00029968]
[1748008913236,0.28395911,109710.0,109700.0,0.00029968]
[1748008913434,0.37348062,109710.0,109700.0,0.00029968]
[1748008914247,0.37248062,109710.0,109700.0,0.00029968]
[1748008914433,0.02735129,109680.0,109670.0,0.22876654]
[1748008914646,0.001,109710.0,109700.0,0.20054651]
[1748008915031,0.09354556,109710.0,109700.0,0.01823111]
[1748008915244,0.18322139,109760.0,109740.0,0.0318]
[1748008915468,0.001,109760.0,109750.0,0.66090395]
[1748008915690,0.02833119,109760.0,109750.0,0.96139779]
[1748008915878,0.01922057,109760.0,109750.0,0.96139779]
[1748008916040,0.02833077,109760.0,109750.0,0.99419779]
[1748008916239,0.01922032,109760.0,109750.0,1.38759779]
[1748008916442,0.02833077,109760.0,109750.0,1.42090506]
[1748008916648,0.02833053,109760.0,109750.0,1.42090506]
[1748008917231,0.04755168,109760.0,109750.0,1.42090514]
[1748008917457,0.22976742,109760.0,109750.0,1.42090514]
[1748008917652,0.22876734,109760.0,109750.0,1.41179403]
[1748008917875,0.03744156,109760.0,109750.0,1.43001626]
[1748008918078,0.04755226,109760.0,109750.0,1.43001626]
[1748008918278,0.04755226,109760.0,109750.0,1.42997626]
[1748008918503,0.229768,109760.0,109750.0,1.42997626]
[1748008918712,0.22065788,109760.0,109750.0,0.00050727]
[1748008918909,0.79606635,109760.0,109750.0,0.00150727]
[1748008919581,0.36587983,109760.0,109750.0,0.00150727]
[1748008919793,0.36487983,109760.0,109750.0,0.00050727]
[1748008920000,0.29098262,109760.0,109750.0,0.00050727]
[1748008921873,0.20143706,109760.0,109750.0,0.00050727]
[1748008922907,0.20143706,109760.0,109750.0,0.46998727]
[1748008925072,0.18321574,109760.0,109750.0,0.68441961]
[1748008925264,0.21965738,109760.0,109750.0,0.53538727]
[1748008925509,0.20143689,109760.0,109750.0,0.53538727]
[1748008925713,0.04320368,109750.0,109740.0,0.87605058]
[1748008925905,0.23454772,109750.0,109740.0,1.22597308]
[1748008926115,0.23454772,109750.0,109740.0,1.13638752]
[1748008927126,0.23454772,109750.0,109740.0,1.13634752]
[1748008927679,0.23454772,109750.0,109740.0,1.13734752]
[1748008928299,0.04320368,109750.0,109740.0,2.0462315]
[1748008928514,0.23454804,109750.0,109740.0,1.22689308]
[1748008928715,0.23454804,109750.0,109740.0,1.13734752]
[1748008928924,0.23454804,109750.0,109740.0,0.39482752]
[1748008929168,0.23454804,109750.0,109740.0,1.13734752]
[1748008929357,0.24365899,109750.0,109740.0,1.36882094]
[1748008929546,0.07053736,109750.0,109740.0,1.46747836]
[1748008929762,0.25277036,109750.0,109740.0,1.4902665]
[1748008929965,0.25277036,109750.0,109740.0,1.49937853]
[1748008930166,0.26188197,109750.0,109740.0,1.49937853]
[1748008930453,0.25277086,109750.0,109740.0,1.49026658]
[1748008930677,0.25277086,109750.0,109740.0,1.49937869]
[1748008930929,0.25277086,109750.0,109740.0,1.50849072]
[1748008931102,0.25277086,109750.0,109740.0,1.51760266]
[1748008931306,0.06142599,109750.0,109740.0,0.77508216]
[1748008931513,0.06142599,109750.0,109740.0,1.51760216]
[1748008931743,0.05231471,109750.0,109740.0,1.51760216]
[1748008931970,0.06142591,109750.0,109740.0,1.51760216]
[1748008932171,0.05231471,109750.0,109740.0,1.51760216]
[1748008932405,0.06142599,109750.0,109740.0,1.51760216]
[1748008932901,0.2345478,109750.0,109740.0,0.69762203]
[1748008933119,0.2345478,109750.0,109740.0,0.00150752]
[1748008933341,0.36586971,109750.0,109740.0,0.46986752]
[1748008933560,0.39716971,109750.0,109740.0,0.46986752]
[1748008934178,0.39716971,109750.0,109740.0,0.00150752]
[1748008934722,0.39716971,109750.0,109740.0,0.00050752]
[1748008934960,0.86085623,109750.0,109740.0,0.00050752]
[1748008935382,0.87085623,109750.0,109740.0,0.00050752]
[1748008935817,0.44266971,109750.0,109740.0,0.00050752]
[1748008936030,0.38929336,109750.0,109740.0,0.00050752]
[1748008936413,0.81747988,109750.0,109740.0,0.00050752]
[1748008936722,0.81947988,109750.0,109740.0,0.00050752]
[1748008937058,0.38929336,109750.0,109740.0,0.00050752]
[1748008937256,0.47781487,109750.0,109740.0,0.00050752]
[1748008937456,0.47981487,109750.0,109740.0,0.00050752]
[1748008937788,0.91000139,109750.0,109740.0,0.00050752]
[1748008938171,0.47981487,109750.0,109740.0,0.00050752]
[1748008938372,0.32809336,109750.0,109740.0,0.00050752]
[1748008939276,0.33720439,109750.0,109740.0,0.19186883]
[1748008939505,0.06542649,109750.0,109740.0,0.19186883]
[1748008939754,0.25677036,109750.0,109740.0,0.46498883]
[1748008939914,0.23854805,109750.0,109740.0,0.45587647]
[1748008940315,0.23654805,109750.0,109740.0,0.45587647]
[1748008940719,0.03609273,109750.0,109740.0,0.45587647]
[1748008940924,0.03609273,109750.0,109740.0,0.4832128]
[1748008941118,0.06542575,109750.0,109740.0,0.4832128]
[1748008941391,0.08364856,109750.0,109740.0,0.46498883]
[1748008941599,0.24765908,109750.0,109740.0,0.45587647]
[1748008941800,0.2294366,109750.0,109740.0,0.45587647]
[1748008942203,0.05631504,109750.0,109740.0,0.47410086]
[1748008942440,0.06542641,109750.0,109740.0,0.46498875]
[1748008942586,0.03809273,109750.0,109740.0,0.4832128]
[1748008942778,0.03809273,109750.0,109740.0,0.5154128]
[1748008942973,0.03809273,109750.0,109740.0,0.9404928]
[1748008943249,0.03215997,109750.0,109740.0,2.24452736]
[1748008943574,0.001,109760.0,109750.0,0.28800703]
[1748008943750,0.001,109760.0,109750.0,5.85197466]
[1748008943951,0.00226139,109780.0,109770.0,0.62616885]
[1748008944190,0.00226139,109780.0,109770.0,5.79579741]
[1748008944396,0.00226139,109780.0,109770.0,1.64583719]
[1748008944598,0.00226139,109780.0,109770.0,1.65494656]
[1748008944804,0.00226139,109780.0,109770.0,1.66948741]
[1748008945350,0.00226139,109780.0,109770.0,1.68096979]
[1748008945552,0.00226139,109780.0,109770.0,1.66634894]
[1748008945759,0.01136977,109780.0,109770.0,0.91579957]
[1748008945959,0.2026616,109780.0,109770.0,0.33442494]
[1748008946190,0.21177072,109780.0,109770.0,0.10302794]
[1748008946356,0.20266201,109780.0,109770.0,0.76399233]
[1748008946560,0.20266201,109780.0,109770.0,1.05395652]
[1748008946759,0.20266201,109780.0,109770.0,1.03636452]
[1748008947014,0.20266201,109780.0,109770.0,1.04547414]
[1748008947161,0.20266201,109780.0,109770.0,1.0181447]
[1748008947360,0.21177064,109780.0,109770.0,1.0454738]
[1748008947559,0.21177064,109780.0,109770.0,1.04547422]
[1748008947797,0.19355297,109780.0,109770.0,1.02725465]
[1748008948004,0.19355297,109780.0,109770.0,1.03636435]
[1748008948244,0.19355297,109780.0,109770.0,1.05458351]
[1748008948456,0.19355297,109780.0,109770.0,0.005]
[1748008948663,0.3575206,109780.0,109770.0,0.005]
[1748008948874,0.3880206,109780.0,109770.0,0.005]
[1748008948992,0.3575206,109780.0,109770.0,0.005]
[1748008949200,0.26797504,109780.0,109770.0,0.005]
[1748008949412,0.41721048,109780.0,109770.0,0.003]
[1748008949631,0.28309853,109780.0,109770.0,0.003]
[1748008949835,0.19130893,109770.0,109760.0,0.27304]
[1748008950687,0.20041863,109770.0,109760.0,0.27304]
[1748008951098,0.20041863,109770.0,109760.0,0.001]
[1748008951276,0.20041863,109770.0,109760.0,0.74236]
[1748008952233,0.20041863,109770.0,109760.0,0.002]
[1748008952459,0.20041863,109770.0,109760.0,0.74336]
[1748008953396,0.20041863,109770.0,109760.0,0.002]
[1748008953607,0.28996419,109770.0,109760.0,0.74336]
[1748008954170,0.20041863,109770.0,109760.0,0.74336]
[1748008955109,0.28996419,109770.0,109760.0,0.002]
[1748008955302,0.28996419,109770.0,109760.0,0.74336]
[1748008955709,0.20041863,109770.0,109760.0,0.74336]
[1748008955914,0.20041863,109770.0,109760.0,0.002]
[1748008956131,0.20041863,109770.0,109760.0,0.74336]
[1748008956333,0.32016419,109770.0,109760.0,0.74336]
[1748008956537,0.35206419,109770.0,109760.0,0.74336]
[1748008956741,0.35206419,109770.0,109760.0,0.002]
[1748008956742,0.4415857,109770.0,109760.0,0.002]
[1748008956941,0.4415857,109770.0,109760.0,0.27504]
[1748008957433,0.4415857,109770.0,109760.0,0.002]
[1748008957832,0.4415857,109770.0,109760.0,0.001]
[1748008958381,0.4415857,109770.0,109740.0,0.39378752]
[1748008958382,0.2095666,109750.0,109740.0,0.39378752]
[1748008958578,0.01821965,109770.0,109760.0,0.0091107]
[1748008958790,0.20041879,109770.0,109760.0,0.27308]
[1748008959004,0.00226139,109780.0,109770.0,0.20041847]
[1748008959230,0.02047839,109780.0,109770.0,0.91697855]
[1748008959431,0.00226139,109780.0,109770.0,0.92608792]
[1748008959634,0.22087892,109780.0,109770.0,0.71656]
[1748008959848,0.21177054,109780.0,109770.0,0.71656]
[1748008960104,0.21177054,109780.0,109770.0,0.71452]
[1748008960455,0.21177054,109780.0,109770.0,0.669748]
[1748008960876,0.20266192,109780.0,109770.0,0.638948]
[1748008961027,0.19130868,109770.0,109760.0,0.52221574]
[1748008961232,0.20952817,109770.0,109760.0,1.25098552]
[1748008961430,0.20852817,109770.0,109760.0,1.38952122]
[1748008961630,0.20852817,109770.0,109760.0,1.37129974]
[1748008961833,0.19941863,109770.0,109760.0,0.01615474]
[1748008962215,0.21867738,109750.0,109740.0,1.01860989]
[1748008962425,0.21467738,109750.0,109740.0,1.20909895]
[1748008962630,0.2146773,109750.0,109740.0,1.49125139]
[1748008962837,0.00911095,109750.0,109740.0,2.27461742]
[1748008963053,0.00911095,109750.0,109740.0,2.44353936]
[1748008963266,0.20267088,109780.0,109770.0,0.00910995]
[1748008963471,0.209528,109770.0,109760.0,0.27792465]
[1748008963674,0.21863795,109770.0,109760.0,1.13480384]
[1748008963881,0.20952858,109770.0,109760.0,0.96540644]
[1748008964087,0.20952858,109770.0,109760.0,0.97451689]
[1748008964505,0.20266167,109780.0,109770.0,0.19130893]
[1748008964730,0.00226139,109780.0,109770.0,0.85194892]
[1748008964933,0.02958768,109780.0,109770.0,0.86785592]
[1748008965131,0.2026616,109780.0,109770.0,0.0316]
[1748008965387,0.2026616,109780.0,109770.0,0.22290901]
[1748008965598,0.02047906,109780.0,109770.0,0.23201863]
[1748008965800,0.02047864,109780.0,109770.0,1.13027956]
[1748008965973,0.03158751,109780.0,109770.0,0.67626356]
[1748008966201,0.02247864,109780.0,109770.0,0.67626356]
[1748008966413,0.04069664,109780.0,109770.0,0.67626356]
[1748008966621,0.22287976,109780.0,109770.0,0.66715436]
[1748008966827,0.21377105,109780.0,109770.0,0.67626398]
[1748008967031,0.21377105,109780.0,109770.0,0.64516398]
[1748008967169,0.00910954,109770.0,109760.0,1.29596131]
[1748008967393,0.00910954,109770.0,109760.0,1.59270452]
[1748008967820,0.01821924,109770.0,109760.0,1.59270452]
[1748008968348,0.01821924,109770.0,109760.0,1.59370452]
[1748008968504,0.02732853,109770.0,109760.0,1.59370452]
[1748008968680,0.00910929,109770.0,109760.0,1.59370452]
[1748008968896,0.19355297,109780.0,109770.0,0.20952833]
[1748008968897,0.00226139,109780.0,109770.0,0.20952833]
[1748008969092,0.00226139,109780.0,109770.0,1.36294526]
[1748008969488,0.01136985,109780.0,109770.0,1.36294526]
[1748008969960,0.02958726,109780.0,109770.0,1.14854826]
[1748008970094,0.01136985,109780.0,109770.0,1.10973626]
[1748008970454,0.01136985,109780.0,109770.0,1.03648226]
[1748008970647,0.00226139,109780.0,109770.0,1.03648226]
[1748008971381,0.15404657,109810.0,109780.0,0.34]
[1748008971579,0.16006482,109810.0,109790.0,1.43175523]
[1748008971727,0.02423077,109810.0,109800.0,0.20036403]
[1748008971924,0.21547017,109810.0,109800.0,0.20947116]
[1748008972118,0.21547017,109810.0,109800.0,0.20036403]
[1748008972367,0.19725765,109810.0,109800.0,0.19125682]
[1748008972608,0.19725765,109810.0,109800.0,0.20087172]
[1748008973065,0.19725765,109810.0,109800.0,0.20997902]
[1748008973260,0.19725765,109810.0,109800.0,0.00050752]
[1748008973727,0.28680321,109810.0,109800.0,0.74002752]
[1748008973931,0.31880321,109810.0,109800.0,0.74002752]
[1748008974162,0.19725765,109810.0,109800.0,0.74002752]
[1748008974375,0.01512463,109810.0,109800.0,0.20087139]
[1748008974541,0.21547001,109810.0,109800.0,0.94039139]
[1748008974750,0.22457664,109810.0,109800.0,0.94949836]
[1748008974948,0.04244297,109810.0,109800.0,0.95860524]
[1748008975118,0.04244288,109810.0,109800.0,0.95860524]
[1748008975464,0.05154935,109810.0,109800.0,0.95860524]
[1748008975796,0.22457623,109810.0,109800.0,0.95860524]
[1748008976000,0.22457631,109810.0,109800.0,0.94949844]
[1748008976209,0.03333691,109810.0,109800.0,0.95860532]
[1748008976526,0.02423044,109810.0,109800.0,0.95860532]
[1748008976733,0.03333691,109810.0,109800.0,0.95860532]
[1748008976933,0.03333682,109810.0,109800.0,0.95860532]
[1748008977360,0.04244329,109810.0,109800.0,0.95860532]
[1748008977608,0.03333691,109810.0,109800.0,0.95860532]
[1748008978101,0.02423044,109810.0,109800.0,0.95860532]
[1748008978302,0.00601825,109810.0,109800.0,0.95860532]
[1748008978517,0.02423044,109810.0,109800.0,0.95860532]
[1748008978720,0.04244329,109810.0,109800.0,0.95860532]
[1748008978977,0.04244321,109810.0,109800.0,0.95860532]
[1748008979175,0.20636404,109810.0,109800.0,0.74002752]
[1748008979507,0.20636404,109810.0,109800.0,0.93128426]
[1748008979710,0.20636404,109810.0,109800.0,0.94949836]
[1748008979897,0.0151243,109810.0,109800.0,0.95860524]
[1748008980312,0.02423036,109810.0,109800.0,0.95860524]
[1748008980510,0.03333666,109810.0,109800.0,0.95860524]
[1748008980734,0.00601825,109810.0,109800.0,0.95860524]
[1748008980954,0.00601825,109810.0,109800.0,1.1115508]
[1748008981158,0.02423044,109810.0,109800.0,1.1115508]
[1748008981374,0.22457606,109810.0,109800.0,0.93128426]
[1748008981574,0.03333674,109810.0,109800.0,0.95860549]
[1748008981817,0.04244321,109810.0,109800.0,0.95860549]
[1748008982198,0.04244321,109810.0,109800.0,0.95960549]
[1748008982413,0.04244321,109810.0,109800.0,0.00150752]
[1748008982414,0.20636412,109810.0,109800.0,0.00150752]
[1748008982624,0.20636412,109810.0,109800.0,0.39454752]
[1748008982824,0.20636412,109810.0,109800.0,1.13398752]
[1748008983030,0.20636412,109810.0,109800.0,1.13498752]
[1748008983234,0.20636412,109810.0,109800.0,1.31613688]
[1748008983440,0.03333691,109810.0,109800.0,1.34245827]
[1748008983653,0.22457623,109810.0,109800.0,1.3612918]
[1748008983897,0.02423044,109810.0,109800.0,1.36129171]
[1748008984116,0.22457622,109810.0,109800.0,1.36129188]
[1748008984340,0.22457622,109810.0,109800.0,1.35218483]
[1748008984341,0.03333682,109810.0,109800.0,1.35218483]
[1748008984565,0.03333674,109810.0,109800.0,1.42199171]
[1748008984762,0.00601825,109810.0,109800.0,1.39169171]
[1748008984965,0.0151243,109810.0,109800.0,1.51353727]
[1748008985138,0.02423044,109810.0,109800.0,1.51353727]
[1748008985322,0.03333682,109810.0,109800.0,1.48123727]
[1748008985521,0.22457606,109810.0,109800.0,1.44173039]
[1748008985802,0.21547009,109810.0,109800.0,1.45083777]
[1748008986007,0.20636387,109810.0,109800.0,1.33397032]
[1748008986146,0.20636387,109810.0,109800.0,1.3430777]
[1748008986348,0.20636387,109810.0,109800.0,1.352185]
[1748008986981,0.20636387,109810.0,109800.0,0.41238096]
[1748008987185,0.20636387,109810.0,109800.0,1.15174096]
[1748008987613,9.98065904,109800.0,109790.0,0.92292666]
[1748008987869,9.98976592,109800.0,109790.0,1.51091999]
[1748008988075,10.19012963,109800.0,109790.0,0.88700372]
[1748008988278,10.19923701,109800.0,109790.0,1.37165997]
[1748008988493,10.18102308,109800.0,109790.0,1.02255193]
[1748008988709,10.18102308,109800.0,109790.0,0.36483777]
[1748008988910,10.18102308,109800.0,109790.0,1.10619777]
[1748008988911,10.18704133,109800.0,109790.0,1.10619777]
[1748008989476,10.18704133,109800.0,109790.0,1.3156876]
[1748008989477,9.99578409,109800.0,109790.0,1.3156876]
[1748008989685,10.01399827,109800.0,109790.0,1.08242481]
[1748008989881,10.20525509,109800.0,109790.0,1.09153269]
[1748008990043,10.20525509,109800.0,109790.0,0.3612804]
[1748008990044,10.00489106,109800.0,109790.0,0.3612804]
[1748008990267,10.02310532,109800.0,109790.0,1.1006804]
[1748008990471,10.21436272,109800.0,109790.0,1.1006804]
[1748008990676,10.21436272,109800.0,109790.0,1.0996804]
[1748008990873,10.01399852,109800.0,109790.0,1.0996804]
[1748008991075,10.02310582,109800.0,109790.0,1.0997204]
[1748008991281,9.98667729,109800.0,109790.0,2.06853696]
[1748008991484,9.98667729,109800.0,109790.0,1.70444496]
[1748008991685,9.98667729,109800.0,109790.0,1.70681196]
[1748008992104,9.98667729,109800.0,109790.0,1.55926596]
[1748008992286,9.99578417,109800.0,109790.0,1.55926596]
[1748008992493,10.19614804,109800.0,109790.0,0.69117269]
[1748008992732,10.19614804,109800.0,109790.0,1.4306126]
[1748008992887,9.99578417,109800.0,109790.0,1.43972031]
[1748008993209,9.99578417,109800.0,109790.0,1.54566531]
[1748008993398,9.98667729,109800.0,109790.0,1.66541087]
[1748008993599,9.98667729,109800.0,109790.0,1.69711087]
[1748008994243,9.90894758,109800.0,109790.0,1.70925172]
[1748008994601,9.90894758,109800.0,109790.0,1.69471087]
[1748008995091,9.90894758,109800.0,109790.0,1.70319069]
[1748008995890,10.10020366,109800.0,109790.0,1.42623515]
[1748008996098,10.11841858,109800.0,109790.0,0.74547982]
[1748008996297,10.11841858,109800.0,109790.0,1.34858115]
[1748008996666,10.10931063,109800.0,109790.0,1.70679732]
[1748008996870,10.10931063,109800.0,109790.0,2.80113559]
[1748008996871,9.9180543,109800.0,109790.0,2.80113559]
[1748008997108,9.92716127,109800.0,109790.0,2.02093496]
[1748008997327,9.92716118,109800.0,109790.0,1.81455846]
[1748008997533,10.11841767,109800.0,109790.0,1.49730691]
[1748008997737,10.10931145,109800.0,109790.0,0.88434691]
[1748008997945,10.10931145,109800.0,109790.0,0.393]
[1748008998291,10.10931145,109800.0,109790.0,1.31212595]
[1748008998292,10.10931079,109800.0,109790.0,1.31212595]
[1748008998495,10.12752588,109800.0,109790.0,1.12996]
[1748008998961,10.09109694,109800.0,109790.0,1.33944983]
[1748008999092,10.10020407,109800.0,109790.0,0.59338212]
[1748008999296,10.11841833,109800.0,109790.0,1.33034212]
[1748008999520,10.11841833,109800.0,109790.0,1.32123416]
[1748008999729,10.11841825,109800.0,109790.0,1.32109416]
[1748009000182,9.90894758,109800.0,109790.0,1.68392443]
[1748009000416,9.90894758,109800.0,109790.0,2.42088443]
[1748009001628,9.86045355,109800.0,109790.0,2.44391458]
[1748009001846,9.85077856,109800.0,109790.0,2.44391458]
[1748009002276,9.76035453,109800.0,109790.0,2.44591458]
[1748009002533,9.72976453,109800.0,109790.0,2.44591458]
[1748009002746,9.72976453,109800.0,109790.0,2.44791458]
[1748009003008,9.69421453,109800.0,109790.0,2.44791458]
[1748009003225,9.67674453,109800.0,109790.0,1.71095458]
[1748009003438,9.67674453,109800.0,109790.0,2.44791458]
[1748009004088,9.63893453,109800.0,109790.0,2.44791458]
[1748009004302,9.63168454,109800.0,109790.0,2.44791458]
[1748009004513,9.52027454,109800.0,109790.0,2.44791458]
[1748009004726,9.51398454,109800.0,109790.0,2.44791458]
[1748009005178,9.46365478,109800.0,109790.0,2.44791458]
[1748009005545,9.44958102,109800.0,109790.0,2.43329373]
[1748009005743,9.40521102,109800.0,109790.0,2.44783458]
[1748009005947,9.35973126,109800.0,109790.0,2.44783458]
[1748009006372,9.20059579,109800.0,109790.0,2.44783458]
[1748009006592,9.15511603,109800.0,109790.0,2.44783458]
[1748009006793,9.15272603,109800.0,109790.0,2.81215458]
[1748009007239,9.34084932,109800.0,109790.0,0.58768834]
[1748009007501,9.40254974,109800.0,109790.0,0.84944622]
[1748009007720,9.4920953,109800.0,109790.0,0.85244622]
[1748009008198,9.4920953,109800.0,109790.0,0.36632]
[1748009008419,9.4920953,109800.0,109790.0,0.83028]
[1748009009281,9.4920953,109800.0,109790.0,0.82828]
[1748009009486,9.40254974,109800.0,109790.0,0.83228]
[1748009009697,9.40254974,109800.0,109790.0,0.82828]
[1748009010098,9.4920953,109800.0,109790.0,0.82828]
[1748009011337,9.4920953,109800.0,109790.0,1.10124]
[1748009011542,9.4920953,109800.0,109790.0,1.09939975]
[1748009012613,9.4893953,109800.0,109790.0,1.09939975]
[1748009013026,9.4893953,109800.0,109790.0,1.11823007]
[1748009013242,9.13778603,109800.0,109790.0,1.57509951]
[1748009013465,9.34229993,109800.0,109790.0,0.72131007]
[1748009013677,9.33319313,109800.0,109790.0,0.72131007]
[1748009013896,9.39749313,109800.0,109790.0,0.72131007]
[1748009014153,9.39749313,109800.0,109790.0,0.38131007]
[1748009014363,9.39749313,109800.0,109790.0,1.09947975]
[1748009015089,9.5765602,109800.0,109790.0,0.36247975]
[1748009015290,10.34595701,109800.0,109790.0,0.34232816]
[1748009015558,0.26600021,109780.0,109770.0,0.66588]
[1748009015755,0.26600021,109780.0,109770.0,0.66603215]
[1748009015961,0.26600021,109780.0,109770.0,0.67514202]
[1748009016161,0.19730975,109780.0,109770.0,0.39311215]
[1748009016473,0.26290975,109780.0,109770.0,1.13011215]
[1748009016895,0.35245531,109780.0,109770.0,0.39311215]
[1748009017107,0.35245531,109780.0,109770.0,0.66607215]
[1748009017315,0.35245531,109780.0,109770.0,0.00015215]
[1748009017316,0.83301537,109780.0,109770.0,0.00015215]
[1748009017995,0.40355621,109780.0,109770.0,0.00015215]
[1748009018247,0.35245531,109780.0,109770.0,0.00015215]
[1748009018449,0.35245531,109780.0,109770.0,0.73723215]
[1748009018657,0.35345531,109780.0,109770.0,0.73723215]
[1748009019201,0.35345531,109780.0,109770.0,0.00015215]